[Event "Late-Titled-Tuesday-Blitz-January-30-2024"]
[Site "Chess.com"]
[Date "2024.01.30"]
[Round "10"]
[White "LastHeroJr"]
[Black "C_K_G"]
[Result "1-0"]
[WhiteElo "2482"]
[BlackElo "2193"]
[TimeControl "180+1"]
[EndTime "15:54:53 PST"]
[Termination "LastHeroJr won on time"]

1. e4 {[%clk 0:03:00.9]} 1... c5 {[%clk 0:02:59.4]} 2. Nf3 {[%clk 0:03:00.6]}
2... d6 {[%clk 0:03:00]} 3. d4 {[%clk 0:02:59.8]} 3... cxd4 {[%clk 0:03:00.9]}
4. Nxd4 {[%clk 0:03:00.5]} 4... Nf6 {[%clk 0:03:01.8]} 5. Nc3 {[%clk 0:03:00.4]}
5... a6 {[%clk 0:03:02.5]} 6. Bg5 {[%clk 0:03:00.5]} 6... e5 {[%clk 0:03:03]} 7.
Nf5 {[%clk 0:02:59.4]} 7... Bxf5 {[%clk 0:03:03.5]} 8. exf5 {[%clk 0:03:00.3]}
8... Nbd7 {[%clk 0:03:03.5]} 9. g3 {[%clk 0:02:48.1]} 9... Qc7 {[%clk
0:03:02.8]} 10. Bg2 {[%clk 0:02:47.4]} 10... Be7 {[%clk 0:03:01.3]} 11. O-O
{[%clk 0:02:47.2]} 11... O-O {[%clk 0:03:00.6]} 12. Qd2 {[%clk 0:02:38.3]} 12...
Rfe8 {[%clk 0:02:56.7]} 13. Rad1 {[%clk 0:02:36.2]} 13... Rac8 {[%clk
0:02:50.2]} 14. Rfe1 {[%clk 0:02:36.1]} 14... b5 {[%clk 0:02:49.9]} 15. a3
{[%clk 0:02:36]} 15... Nb6 {[%clk 0:02:22.5]} 16. Bxf6 {[%clk 0:02:30.9]} 16...
gxf6 {[%clk 0:02:15.3]} 17. Qh6 {[%clk 0:02:21]} 17... Kh8 {[%clk 0:01:45]} 18.
Ne4 {[%clk 0:02:03.8]} 18... Qd8 {[%clk 0:01:34.5]} 19. c3 {[%clk 0:01:48.9]}
19... Rg8 {[%clk 0:01:29]} 20. Re2 {[%clk 0:01:40.1]} 20... d5 {[%clk
0:01:05.3]} 21. Nd2 {[%clk 0:01:12.6]} 21... Rg5 {[%clk 0:00:57.9]} 22. Nf3
{[%clk 0:00:59.2]} 22... Bf8 {[%clk 0:00:37.5]} 23. Nxg5 {[%clk 0:00:52.4]}
23... fxg5 {[%clk 0:00:23]} 24. Qh5 {[%clk 0:00:49.1]} 24... f6 {[%clk
0:00:21.4]} 25. Qf7 {[%clk 0:00:35]} 25... Rc7 {[%clk 0:00:18.2]} 26. Qe6 {[%clk
0:00:34.6]} 26... Rd7 {[%clk 0:00:17.8]} 27. Qc6 {[%clk 0:00:27]} 27... Kg7
{[%clk 0:00:17]} 28. b3 {[%clk 0:00:23.9]} 28... d4 {[%clk 0:00:15.9]} 29. cxd4
{[%clk 0:00:23.9]} 29... exd4 {[%clk 0:00:16.3]} 30. Red2 {[%clk 0:00:21.1]}
30... d3 {[%clk 0:00:15.8]} 31. Qe4 {[%clk 0:00:20.4]} 31... Rd4 {[%clk
0:00:14.6]} 32. Qe3 {[%clk 0:00:20.2]} 32... Bc5 {[%clk 0:00:12]} 33. Qe6 {[%clk
0:00:20.1]} 33... Rd6 {[%clk 0:00:11.3]} 34. Qe4 {[%clk 0:00:19]} 34... Nd7
{[%clk 0:00:09.7]} 35. Rxd3 {[%clk 0:00:19.1]} 35... Ne5 {[%clk 0:00:08.3]} 36.
Rxd6 {[%clk 0:00:18.5]} 36... Bxd6 {[%clk 0:00:09.2]} 37. Qb7+ {[%clk
0:00:18.5]} 37... Kh6 {[%clk 0:00:07.5]} 38. Qd5 {[%clk 0:00:19]} 1-0

[Event "Late-Titled-Tuesday-Blitz-January-30-2024"]
[Site "Chess.com"]
[Date "2024.01.30"]
[Round "10"]
[White "jmpion"]
[Black "SuanFernandes"]
[Result "1-0"]
[WhiteElo "2521"]
[BlackElo "2336"]
[TimeControl "180+1"]
[EndTime "15:54:56 PST"]
[Termination "jmpion won by checkmate"]

1. e4 {[%clk 0:03:00.9]} 1... c6 {[%clk 0:02:59.7]} 2. d4 {[%clk 0:03:00.7]}
2... d5 {[%clk 0:02:59.7]} 3. Nc3 {[%clk 0:03:01.3]} 3... dxe4 {[%clk
0:03:00.2]} 4. Nxe4 {[%clk 0:03:02.2]} 4... Nf6 {[%clk 0:03:00.2]} 5. Nxf6+
{[%clk 0:03:02]} 5... exf6 {[%clk 0:03:01.1]} 6. c3 {[%clk 0:03:01.8]} 6... Bd6
{[%clk 0:03:01.8]} 7. Bd3 {[%clk 0:03:02.5]} 7... O-O {[%clk 0:03:02.5]} 8. Qc2
{[%clk 0:03:03.2]} 8... Re8+ {[%clk 0:03:02.8]} 9. Ne2 {[%clk 0:03:03.9]} 9...
h5 {[%clk 0:03:03.5]} 10. O-O {[%clk 0:03:03.4]} 10... h4 {[%clk 0:03:04]} 11.
h3 {[%clk 0:03:04]} 11... Nd7 {[%clk 0:03:03.6]} 12. Nf4 {[%clk 0:03:04]} 12...
Nf8 {[%clk 0:02:59.5]} 13. Nh5 {[%clk 0:03:01.3]} 13... g6 {[%clk 0:02:47.7]}
14. Nf4 {[%clk 0:02:54.5]} 14... Kg7 {[%clk 0:02:43.1]} 15. Be3 {[%clk
0:02:50.4]} 15... Be6 {[%clk 0:02:40.3]} 16. Rad1 {[%clk 0:02:46]} 16... b5
{[%clk 0:02:39.1]} 17. a4 {[%clk 0:02:39.7]} 17... a6 {[%clk 0:02:39]} 18. Nxe6+
{[%clk 0:02:35.6]} 18... Nxe6 {[%clk 0:02:38.5]} 19. axb5 {[%clk 0:02:35.3]}
19... axb5 {[%clk 0:02:38.2]} 20. d5 {[%clk 0:02:35.9]} 20... Nc5 {[%clk
0:02:23.3]} 21. Bxc5 {[%clk 0:02:19.7]} 21... Bxc5 {[%clk 0:02:23.1]} 22. dxc6
{[%clk 0:02:20.3]} 22... Qb6 {[%clk 0:02:20.8]} 23. Be4 {[%clk 0:02:02]} 23...
Rac8 {[%clk 0:02:17.4]} 24. Rd7 {[%clk 0:01:57.5]} 24... Rc7 {[%clk 0:02:03.2]}
25. Bxg6 {[%clk 0:01:39.2]} 25... Rxd7 {[%clk 0:02:01]} 26. cxd7 {[%clk
0:01:38.4]} 26... Rd8 {[%clk 0:01:59.5]} 27. Bf5 {[%clk 0:01:33.6]} 27... Ra8
{[%clk 0:01:47]} 28. b4 {[%clk 0:01:12.5]} 28... Bd6 {[%clk 0:01:44.6]} 29. Qe4
{[%clk 0:01:11.2]} 29... Rh8 {[%clk 0:01:37.8]} 30. Qg4+ {[%clk 0:01:01.8]}
30... Kf8 {[%clk 0:01:37.7]} 31. Re1 {[%clk 0:01:01.6]} 31... Be5 {[%clk
0:01:36.3]} 32. Ra1 {[%clk 0:00:45.1]} 32... Ke7 {[%clk 0:01:30.1]} 33. Qe4
{[%clk 0:00:45.3]} 33... Qc7 {[%clk 0:01:13.5]} 34. f4 {[%clk 0:00:29.9]} 34...
Qxc3 {[%clk 0:01:13.2]} 35. Rd1 {[%clk 0:00:30]} 35... Qb3 {[%clk 0:01:00.7]}
36. Re1 {[%clk 0:00:13.6]} 36... Rd8 {[%clk 0:00:10.4]} 37. fxe5 {[%clk
0:00:13.8]} 37... Qc4 {[%clk 0:00:04.1]} 38. exf6+ {[%clk 0:00:13.7]} 38... Kf8
{[%clk 0:00:02.5]} 39. Qe7+ {[%clk 0:00:13.3]} 39... Kg8 {[%clk 0:00:02.4]} 40.
Qxd8# {[%clk 0:00:13.5]} 1-0

[Event "Late-Titled-Tuesday-Blitz-January-30-2024"]
[Site "Chess.com"]
[Date "2024.01.30"]
[Round "10"]
[White "N_Mullodzhanov"]
[Black "Viktor_Poddubnyi"]
[Result "1-0"]
[WhiteElo "2455"]
[BlackElo "2323"]
[TimeControl "180+1"]
[EndTime "15:54:59 PST"]
[Termination "N_Mullodzhanov won by resignation"]

1. e4 {[%clk 0:03:00.9]} 1... g6 {[%clk 0:03:00.3]} 2. d4 {[%clk 0:03:00]} 2...
Bg7 {[%clk 0:03:00.8]} 3. Nc3 {[%clk 0:03:00]} 3... d6 {[%clk 0:03:01.3]} 4. Be3
{[%clk 0:03:00.2]} 4... a6 {[%clk 0:03:01.8]} 5. Qd2 {[%clk 0:03:00.3]} 5... b5
{[%clk 0:03:02.1]} 6. Bd3 {[%clk 0:02:59]} 6... Bb7 {[%clk 0:03:01.3]} 7. Nf3
{[%clk 0:02:58.2]} 7... Nd7 {[%clk 0:03:01.6]} 8. Ne2 {[%clk 0:02:58.3]} 8...
Ngf6 {[%clk 0:02:59.6]} 9. Ng3 {[%clk 0:02:55]} 9... h5 {[%clk 0:02:59.1]} 10.
h4 {[%clk 0:02:52.5]} 10... c5 {[%clk 0:02:50.1]} 11. d5 {[%clk 0:02:34.2]}
11... c4 {[%clk 0:02:37.3]} 12. Be2 {[%clk 0:02:26.7]} 12... Qc7 {[%clk
0:02:37.2]} 13. a4 {[%clk 0:02:25.5]} 13... O-O {[%clk 0:02:21.7]} 14. Ng5
{[%clk 0:02:16.1]} 14... Nc5 {[%clk 0:02:04.7]} 15. a5 {[%clk 0:02:10.1]} 15...
Rfe8 {[%clk 0:01:14.6]} 16. O-O {[%clk 0:02:08.2]} 16... e5 {[%clk 0:01:01.7]}
17. Qd1 {[%clk 0:02:03.1]} 17... Na4 {[%clk 0:00:42.2]} 18. b4 {[%clk
0:01:22.2]} 18... Nc3 {[%clk 0:00:31.7]} 19. Qd2 {[%clk 0:01:17.2]} 19... Nxe2+
{[%clk 0:00:31]} 20. Qxe2 {[%clk 0:01:17]} 20... c3 {[%clk 0:00:26.3]} 21. Bb6
{[%clk 0:01:12.1]} 21... Qd7 {[%clk 0:00:25.5]} 22. Rfd1 {[%clk 0:01:01.1]}
22... Rac8 {[%clk 0:00:25.4]} 23. f3 {[%clk 0:01:01]} 23... Rc4 {[%clk
0:00:24.5]} 24. Rab1 {[%clk 0:01:00.8]} 24... Rec8 {[%clk 0:00:24.2]} 25. Nf1
{[%clk 0:01:00.9]} 25... Bh6 {[%clk 0:00:22.8]} 26. Ne3 {[%clk 0:01:00.7]} 26...
Bxg5 {[%clk 0:00:22]} 27. hxg5 {[%clk 0:01:00.5]} 27... Nh7 {[%clk 0:00:22.3]}
28. Nxc4 {[%clk 0:01:00.2]} 28... Rxc4 {[%clk 0:00:23.2]} 29. Qe3 {[%clk
0:00:56.8]} 29... Qe7 {[%clk 0:00:20.8]} 30. Rd3 {[%clk 0:00:52.3]} 30... Nxg5
{[%clk 0:00:18.1]} 31. Rxc3 {[%clk 0:00:49.9]} 31... h4 {[%clk 0:00:14.1]} 32.
Rxc4 {[%clk 0:00:48.1]} 32... bxc4 {[%clk 0:00:15]} 33. Kf2 {[%clk 0:00:42.2]}
33... Qf6 {[%clk 0:00:14.7]} 34. Rh1 {[%clk 0:00:40.6]} 34... Bc8 {[%clk
0:00:13.9]} 35. c3 {[%clk 0:00:36.5]} 35... h3 {[%clk 0:00:13.4]} 36. g3 {[%clk
0:00:33.6]} 36... Kg7 {[%clk 0:00:10.9]} 37. b5 {[%clk 0:00:28.1]} 37... Bg4
{[%clk 0:00:09.6]} 38. f4 {[%clk 0:00:25.7]} 38... exf4 {[%clk 0:00:07.5]} 39.
gxf4 {[%clk 0:00:23.5]} 39... Bf3 {[%clk 0:00:05.3]} 40. Bd4 {[%clk 0:00:21.2]}
40... Nxe4+ {[%clk 0:00:03.4]} 41. Kxf3 {[%clk 0:00:19.6]} 1-0

[Event "Late-Titled-Tuesday-Blitz-January-30-2024"]
[Site "Chess.com"]
[Date "2024.01.30"]
[Round "10"]
[White "Chessdreamer2020"]
[Black "Mikhail_Bryakin"]
[Result "0-1"]
[WhiteElo "2563"]
[BlackElo "2808"]
[TimeControl "180+1"]
[EndTime "15:55:01 PST"]
[Termination "Mikhail_Bryakin won on time"]

1. e4 {[%clk 0:03:00.2]} 1... d5 {[%clk 0:02:54]} 2. exd5 {[%clk 0:03:00.1]}
2... Nf6 {[%clk 0:02:53.2]} 3. Bb5+ {[%clk 0:03:00]} 3... Nbd7 {[%clk
0:02:53.1]} 4. Nf3 {[%clk 0:03:00]} 4... a6 {[%clk 0:02:54]} 5. Be2 {[%clk
0:02:59.9]} 5... b5 {[%clk 0:02:54.4]} 6. d4 {[%clk 0:02:59.6]} 6... Bb7 {[%clk
0:02:54.5]} 7. O-O {[%clk 0:02:59.6]} 7... Nb6 {[%clk 0:02:54.9]} 8. Re1 {[%clk
0:02:55.9]} 8... g6 {[%clk 0:02:55]} 9. Ne5 {[%clk 0:02:53.2]} 9... Nbxd5 {[%clk
0:02:52.8]} 10. c3 {[%clk 0:02:51.3]} 10... Bg7 {[%clk 0:02:52.8]} 11. a4 {[%clk
0:02:51.6]} 11... c6 {[%clk 0:02:52]} 12. Nd2 {[%clk 0:02:49.9]} 12... O-O
{[%clk 0:02:52.4]} 13. Nb3 {[%clk 0:02:50.2]} 13... Nd7 {[%clk 0:02:49.3]} 14.
Nxd7 {[%clk 0:02:50.2]} 14... Qxd7 {[%clk 0:02:48.5]} 15. Nc5 {[%clk 0:02:51.1]}
15... Qc7 {[%clk 0:02:48.8]} 16. Bf3 {[%clk 0:02:38.5]} 16... Rad8 {[%clk
0:02:48.5]} 17. Bg5 {[%clk 0:02:33.7]} 17... Bf6 {[%clk 0:02:46.5]} 18. Bxf6
{[%clk 0:02:29.6]} 18... exf6 {[%clk 0:02:47.4]} 19. Bxd5 {[%clk 0:02:24]} 19...
Rxd5 {[%clk 0:02:42.7]} 20. Re3 {[%clk 0:02:17.6]} 20... Bc8 {[%clk 0:02:39.4]}
21. axb5 {[%clk 0:02:15.3]} 21... axb5 {[%clk 0:02:30.6]} 22. Qe2 {[%clk
0:02:11.2]} 22... Rh5 {[%clk 0:02:24.2]} 23. h3 {[%clk 0:02:04.7]} 23... Rg5
{[%clk 0:02:21.8]} 24. Kh1 {[%clk 0:01:57.7]} 24... Rf5 {[%clk 0:02:20.9]} 25.
Ra8 {[%clk 0:01:30.8]} 25... h5 {[%clk 0:02:14.8]} 26. Re8 {[%clk 0:01:27.4]}
26... Kg7 {[%clk 0:01:56.1]} 27. Raxc8 {[%clk 0:01:25.1]} 27... Qxc8 {[%clk
0:01:56.6]} 28. Rxc8 {[%clk 0:01:25]} 28... Rxc8 {[%clk 0:01:57.5]} 29. f3
{[%clk 0:01:11.6]} 29... Ra8 {[%clk 0:01:57.9]} 30. Kh2 {[%clk 0:01:06]} 30...
Ra1 {[%clk 0:01:53.9]} 31. Qe7 {[%clk 0:01:03.7]} 31... Ra8 {[%clk 0:01:48.2]}
32. Qd7 {[%clk 0:00:59.4]} 32... h4 {[%clk 0:01:43.6]} 33. Qxc6 {[%clk
0:00:58.9]} 33... Ra2 {[%clk 0:01:44.2]} 34. Nd3 {[%clk 0:00:56.3]} 34... Rg5
{[%clk 0:01:42.1]} 35. d5 {[%clk 0:00:54.3]} 35... Ra1 {[%clk 0:01:42.5]} 36. d6
{[%clk 0:00:54]} 36... Rd1 {[%clk 0:01:43]} 37. Nf4 {[%clk 0:00:52.8]} 37... Re5
{[%clk 0:01:39.9]} 38. d7 {[%clk 0:00:49.9]} 38... Ree1 {[%clk 0:01:39.9]} 39.
g4 {[%clk 0:00:17.9]} 39... Rd2+ {[%clk 0:01:39.3]} 40. Ng2 {[%clk 0:00:18.3]}
40... Red1 {[%clk 0:01:36.5]} 41. g5 {[%clk 0:00:16.9]} 41... fxg5 {[%clk
0:01:29.1]} 42. Qxb5 {[%clk 0:00:17.1]} 42... Rd5 {[%clk 0:01:29.3]} 43. Qc6
{[%clk 0:00:10.6]} 43... Rxd7 {[%clk 0:01:29.3]} 44. b4 {[%clk 0:00:10.4]} 44...
R7d2 {[%clk 0:01:29.7]} 45. b5 {[%clk 0:00:09.3]} 45... Rb1 {[%clk 0:01:30.1]}
46. Qc5 {[%clk 0:00:06.6]} 46... Rbb2 {[%clk 0:01:23.7]} 47. Qxg5 {[%clk
0:00:06.2]} 47... f6 {[%clk 0:01:24.6]} 48. Qg4 {[%clk 0:00:05.7]} 48... Rxb5
{[%clk 0:01:25.2]} 49. c4 {[%clk 0:00:05.2]} 49... Rbb2 {[%clk 0:01:25.5]} 50.
f4 {[%clk 0:00:05.4]} 50... Rbc2 {[%clk 0:01:24.1]} 51. f5 {[%clk 0:00:05.7]}
51... g5 {[%clk 0:01:24.3]} 52. Qe4 {[%clk 0:00:06]} 52... Rxg2+ {[%clk
0:01:17.5]} 53. Kh1 {[%clk 0:00:04.2]} 53... Rge2 {[%clk 0:01:17.1]} 54. Qb7+
{[%clk 0:00:04.4]} 54... Kh6 {[%clk 0:01:17.7]} 55. Qb1 {[%clk 0:00:02.2]} 55...
Rxc4 {[%clk 0:01:12.5]} 56. Kg1 {[%clk 0:00:01.3]} 56... Rcc2 {[%clk 0:01:10.4]}
57. Kf1 {[%clk 0:00:01.2]} 57... Rh2 {[%clk 0:01:10.2]} 0-1

[Event "Late-Titled-Tuesday-Blitz-January-30-2024"]
[Site "Chess.com"]
[Date "2024.01.30"]
[Round "10"]
[White "OneTrickPony_82"]
[Black "Baby_Legs"]
[Result "0-1"]
[WhiteElo "2524"]
[BlackElo "2631"]
[TimeControl "180+1"]
[EndTime "15:55:02 PST"]
[Termination "Baby_Legs won by resignation"]

1. d4 {[%clk 0:03:00.9]} 1... g6 {[%clk 0:03:00.9]} 2. e4 {[%clk 0:03:00.4]}
2... Bg7 {[%clk 0:03:01.2]} 3. Nf3 {[%clk 0:03:00.9]} 3... d6 {[%clk 0:03:01.2]}
4. Be3 {[%clk 0:03:01]} 4... Nf6 {[%clk 0:02:57.7]} 5. Nc3 {[%clk 0:03:01]} 5...
O-O {[%clk 0:02:56.9]} 6. Qd2 {[%clk 0:03:01.2]} 6... Bg4 {[%clk 0:02:51.7]} 7.
Ng5 {[%clk 0:02:55.6]} 7... e5 {[%clk 0:02:39.7]} 8. dxe5 {[%clk 0:02:50.4]}
8... dxe5 {[%clk 0:02:40.1]} 9. Qxd8 {[%clk 0:02:49.3]} 9... Rxd8 {[%clk
0:02:41]} 10. Bc4 {[%clk 0:02:48.9]} 10... Rf8 {[%clk 0:02:39.4]} 11. h3 {[%clk
0:02:35.1]} 11... Bd7 {[%clk 0:02:37.1]} 12. O-O-O {[%clk 0:02:30.5]} 12... h6
{[%clk 0:02:18.5]} 13. Nf3 {[%clk 0:02:23.4]} 13... Re8 {[%clk 0:02:13.6]} 14.
Nb5 {[%clk 0:02:16.3]} 14... Bxb5 {[%clk 0:02:09.6]} 15. Bxb5 {[%clk 0:02:16.1]}
15... c6 {[%clk 0:02:09]} 16. Bd3 {[%clk 0:02:14]} 16... Nbd7 {[%clk 0:02:07.6]}
17. Nd2 {[%clk 0:02:12.6]} 17... Bf8 {[%clk 0:02:07.2]} 18. Nb3 {[%clk
0:02:08.5]} 18... b6 {[%clk 0:01:56.3]} 19. f3 {[%clk 0:02:06.7]} 19... h5
{[%clk 0:01:55.6]} 20. Ba6 {[%clk 0:01:59.3]} 20... Rab8 {[%clk 0:01:51.4]} 21.
Rd2 {[%clk 0:01:50.5]} 21... Kh7 {[%clk 0:01:44.8]} 22. Rhd1 {[%clk 0:01:49.8]}
22... Re7 {[%clk 0:01:43.4]} 23. Bg5 {[%clk 0:01:38.4]} 23... Bh6 {[%clk
0:01:39.5]} 24. h4 {[%clk 0:01:38.4]} 24... Rd8 {[%clk 0:00:43.8]} 25. Kb1
{[%clk 0:01:25.7]} 25... Bxg5 {[%clk 0:00:19.1]} 26. hxg5 {[%clk 0:01:25.5]}
26... Ne8 {[%clk 0:00:20]} 27. Bb7 {[%clk 0:01:21.6]} 27... Rb8 {[%clk
0:00:20.4]} 28. Bxc6 {[%clk 0:01:20.6]} 28... Nf8 {[%clk 0:00:18.9]} 29. Bd5
{[%clk 0:01:13.6]} 29... Nc7 {[%clk 0:00:17.8]} 30. g3 {[%clk 0:01:07.3]} 30...
Nfe6 {[%clk 0:00:17.6]} 31. Bxe6 {[%clk 0:01:05]} 31... Nxe6 {[%clk 0:00:18.5]}
32. Rd7 {[%clk 0:01:05.2]} 32... Rb7 {[%clk 0:00:19.1]} 33. Rxb7 {[%clk
0:01:02.2]} 33... Rxb7 {[%clk 0:00:19.1]} 34. Rd5 {[%clk 0:01:02.7]} 34... Nxg5
{[%clk 0:00:19.3]} 35. Nd2 {[%clk 0:00:57.9]} 35... f6 {[%clk 0:00:18.4]} 36. c4
{[%clk 0:00:54.3]} 36... Ne6 {[%clk 0:00:17.8]} 37. Kc2 {[%clk 0:00:50.8]} 37...
g5 {[%clk 0:00:17.1]} 38. Kd3 {[%clk 0:00:47.7]} 38... Kg6 {[%clk 0:00:17.5]}
39. Nf1 {[%clk 0:00:42.6]} 39... h4 {[%clk 0:00:17.5]} 40. gxh4 {[%clk
0:00:42.4]} 40... Nf4+ {[%clk 0:00:16.8]} 41. Ke3 {[%clk 0:00:40.2]} 41... Nxd5+
{[%clk 0:00:17.7]} 42. cxd5 {[%clk 0:00:40.3]} 42... gxh4 {[%clk 0:00:18.3]} 43.
Kf2 {[%clk 0:00:36.6]} 43... Kg5 {[%clk 0:00:18.6]} 44. Ne3 {[%clk 0:00:34.8]}
44... Rc7 {[%clk 0:00:18.6]} 45. d6 {[%clk 0:00:34.1]} 45... Rc6 {[%clk
0:00:18.8]} 46. Nf5 {[%clk 0:00:25.3]} 46... Rc8 {[%clk 0:00:18.3]} 47. Kg2
{[%clk 0:00:19.2]} 47... Kf4 {[%clk 0:00:16.6]} 48. b4 {[%clk 0:00:18.7]} 48...
Rd8 {[%clk 0:00:16.6]} 49. a4 {[%clk 0:00:18.2]} 49... h3+ {[%clk 0:00:17.1]}
50. Kxh3 {[%clk 0:00:18]} 50... Kxf3 {[%clk 0:00:18]} 0-1

[Event "Late-Titled-Tuesday-Blitz-January-30-2024"]
[Site "Chess.com"]
[Date "2024.01.30"]
[Round "10"]
[White "Mikhail_Golubev"]
[Black "alexgo05"]
[Result "0-1"]
[WhiteElo "2642"]
[BlackElo "2429"]
[TimeControl "180+1"]
[EndTime "15:55:02 PST"]
[Termination "alexgo05 won on time"]

1. e4 {[%clk 0:03:00.9]} 1... c6 {[%clk 0:02:59.8]} 2. Nf3 {[%clk 0:02:58.9]}
2... g6 {[%clk 0:03:00.1]} 3. d4 {[%clk 0:02:56.6]} 3... Bg7 {[%clk 0:03:00.4]}
4. Be2 {[%clk 0:02:54.6]} 4... d5 {[%clk 0:02:59]} 5. e5 {[%clk 0:02:52.9]} 5...
f6 {[%clk 0:02:58.9]} 6. O-O {[%clk 0:02:51.7]} 6... Nh6 {[%clk 0:02:59.2]} 7.
exf6 {[%clk 0:02:43]} 7... exf6 {[%clk 0:03:00.1]} 8. c4 {[%clk 0:02:42.5]} 8...
O-O {[%clk 0:02:51]} 9. Nc3 {[%clk 0:02:41.6]} 9... dxc4 {[%clk 0:02:41.8]} 10.
Bxc4+ {[%clk 0:02:40.8]} 10... Kh8 {[%clk 0:02:42]} 11. h3 {[%clk 0:02:37.1]}
11... Nd7 {[%clk 0:02:38.5]} 12. Bb3 {[%clk 0:02:35.7]} 12... Nb6 {[%clk
0:02:35.9]} 13. Re1 {[%clk 0:02:28.5]} 13... Nf7 {[%clk 0:02:26.4]} 14. Bf4
{[%clk 0:02:19.4]} 14... Bf5 {[%clk 0:02:26]} 15. Bg3 {[%clk 0:02:05.8]} 15...
Qd7 {[%clk 0:02:21.6]} 16. Qd2 {[%clk 0:01:57.9]} 16... Rfe8 {[%clk 0:02:19.1]}
17. Rad1 {[%clk 0:01:53]} 17... Be6 {[%clk 0:02:14.3]} 18. Bxe6 {[%clk
0:01:37.7]} 18... Rxe6 {[%clk 0:02:14]} 19. Rxe6 {[%clk 0:01:23.1]} 19... Qxe6
{[%clk 0:02:14.1]} 20. Re1 {[%clk 0:01:22.6]} 20... Qd7 {[%clk 0:01:59.2]} 21.
Qe3 {[%clk 0:01:09.9]} 21... Nh6 {[%clk 0:01:51]} 22. Qe7 {[%clk 0:00:45.6]}
22... Nf5 {[%clk 0:01:51]} 23. Qxd7 {[%clk 0:00:44.8]} 23... Nxd7 {[%clk
0:01:51.9]} 24. Bf4 {[%clk 0:00:44.9]} 24... g5 {[%clk 0:01:06.7]} 25. Bh2
{[%clk 0:00:43]} 25... h5 {[%clk 0:01:01.2]} 26. g4 {[%clk 0:00:43]} 26... hxg4
{[%clk 0:01:01]} 27. hxg4 {[%clk 0:00:43.4]} 27... Nh6 {[%clk 0:00:57.7]} 28.
Re7 {[%clk 0:00:43.2]} 28... Nb6 {[%clk 0:00:57]} 29. Rxb7 {[%clk 0:00:42.6]}
29... Nxg4 {[%clk 0:00:53]} 30. Bd6 {[%clk 0:00:39.9]} 30... Nd5 {[%clk
0:00:40.1]} 31. Nxd5 {[%clk 0:00:31.7]} 31... cxd5 {[%clk 0:00:40.6]} 32. Bc5
{[%clk 0:00:32.3]} 32... Re8 {[%clk 0:00:40.8]} 33. Bxa7 {[%clk 0:00:22.5]}
33... Re2 {[%clk 0:00:40.6]} 34. a4 {[%clk 0:00:16.8]} 34... Rxf2 {[%clk
0:00:38.5]} 35. Rb3 {[%clk 0:00:14.7]} 35... Re2 {[%clk 0:00:28.1]} 36. a5
{[%clk 0:00:13.4]} 36... Ne3 {[%clk 0:00:28.6]} 37. a6 {[%clk 0:00:03.9]} 37...
g4 {[%clk 0:00:29.2]} 38. Nh4 {[%clk 0:00:03]} 38... g3 {[%clk 0:00:29.7]} 39.
Nf3 {[%clk 0:00:01.9]} 39... Rg2+ {[%clk 0:00:20.4]} 40. Kh1 {[%clk 0:00:02.3]}
40... Re2 {[%clk 0:00:17]} 41. Kg1 {[%clk 0:00:02.3]} 41... f5 {[%clk
0:00:15.7]} 42. Kh1 {[%clk 0:00:01.8]} 42... f4 {[%clk 0:00:16]} 43. Bb6 {[%clk
0:00:01.2]} 43... Rf2 {[%clk 0:00:15.7]} 0-1

[Event "Late-Titled-Tuesday-Blitz-January-30-2024"]
[Site "Chess.com"]
[Date "2024.01.30"]
[Round "10"]
[White "FairChess_on_YouTube"]
[Black "Hikaru"]
[Result "0-1"]
[WhiteElo "3088"]
[BlackElo "3297"]
[TimeControl "180+1"]
[EndTime "15:55:06 PST"]
[Termination "Hikaru won on time"]

1. e4 {[%clk 0:03:00.9]} 1... d5 {[%clk 0:02:57]} 2. exd5 {[%clk 0:03:00.6]}
2... Qxd5 {[%clk 0:02:57.9]} 3. Nc3 {[%clk 0:03:00.7]} 3... Qa5 {[%clk
0:02:58.6]} 4. Nf3 {[%clk 0:03:00.7]} 4... Nf6 {[%clk 0:02:58.3]} 5. d4 {[%clk
0:03:00.6]} 5... Bg4 {[%clk 0:02:58]} 6. h3 {[%clk 0:03:00.5]} 6... Bh5 {[%clk
0:02:57.9]} 7. Be3 {[%clk 0:02:51.9]} 7... Nbd7 {[%clk 0:02:56.7]} 8. Be2 {[%clk
0:02:50.4]} 8... c6 {[%clk 0:02:53.5]} 9. O-O {[%clk 0:02:47.1]} 9... e6 {[%clk
0:02:53]} 10. Nd2 {[%clk 0:02:47]} 10... Bxe2 {[%clk 0:02:49.4]} 11. Qxe2 {[%clk
0:02:47.9]} 11... Bb4 {[%clk 0:02:49.6]} 12. Nce4 {[%clk 0:02:43.3]} 12... O-O
{[%clk 0:02:40.8]} 13. c3 {[%clk 0:02:40.6]} 13... Be7 {[%clk 0:02:40.9]} 14. a4
{[%clk 0:02:40.9]} 14... Rae8 {[%clk 0:02:35.3]} 15. Rfe1 {[%clk 0:02:38.9]}
15... Nd5 {[%clk 0:02:35.5]} 16. Nc4 {[%clk 0:02:38.3]} 16... Qc7 {[%clk
0:02:35.5]} 17. Bg5 {[%clk 0:02:35.8]} 17... h6 {[%clk 0:02:30.1]} 18. Bxe7
{[%clk 0:02:31.9]} 18... Rxe7 {[%clk 0:02:31]} 19. Nc5 {[%clk 0:02:23.4]} 19...
b6 {[%clk 0:02:11.5]} 20. Nxd7 {[%clk 0:02:19.6]} 20... Rxd7 {[%clk 0:02:12.4]}
21. a5 {[%clk 0:02:16.3]} 21... c5 {[%clk 0:02:08.5]} 22. axb6 {[%clk
0:02:15.1]} 22... axb6 {[%clk 0:02:08.5]} 23. Ne5 {[%clk 0:02:09.6]} 23... Rdd8
{[%clk 0:02:07.5]} 24. Rad1 {[%clk 0:02:03.8]} 24... Nf6 {[%clk 0:01:55.7]} 25.
Ng4 {[%clk 0:01:41.4]} 25... Nd5 {[%clk 0:01:50.2]} 26. Qf3 {[%clk 0:01:34.6]}
26... Ne7 {[%clk 0:01:47.7]} 27. Ne3 {[%clk 0:01:16.1]} 27... cxd4 {[%clk
0:01:43.7]} 28. cxd4 {[%clk 0:01:17]} 28... Nd5 {[%clk 0:01:43.7]} 29. Rc1
{[%clk 0:01:14.8]} 29... Qb8 {[%clk 0:01:39.7]} 30. Rc4 {[%clk 0:01:02.9]} 30...
Rd7 {[%clk 0:01:33.7]} 31. Rec1 {[%clk 0:01:01.5]} 31... Nf6 {[%clk 0:01:23.3]}
32. Ng4 {[%clk 0:00:54.3]} 32... Nxg4 {[%clk 0:01:22.9]} 33. Qxg4 {[%clk
0:00:54.2]} 33... Rfd8 {[%clk 0:01:22.7]} 34. Qe4 {[%clk 0:00:51.5]} 34... b5
{[%clk 0:01:15.2]} 35. Rb4 {[%clk 0:00:50.5]} 35... Rd5 {[%clk 0:01:15.3]} 36.
g3 {[%clk 0:00:48.5]} 36... Qd6 {[%clk 0:01:10.9]} 37. Qe1 {[%clk 0:00:48.3]}
37... Qb6 {[%clk 0:01:11]} 38. Qe2 {[%clk 0:00:33.1]} 38... Qa5 {[%clk
0:01:05.1]} 39. Rb3 {[%clk 0:00:32.9]} 39... b4 {[%clk 0:01:05.5]} 40. Rd3
{[%clk 0:00:20.8]} 40... Rxd4 {[%clk 0:01:04.9]} 41. Rxd4 {[%clk 0:00:21.3]}
41... Rxd4 {[%clk 0:01:05.8]} 42. Rc8+ {[%clk 0:00:20.5]} 42... Rd8 {[%clk
0:00:55.3]} 43. Qc4 {[%clk 0:00:17.8]} 43... Rxc8 {[%clk 0:00:52]} 44. Qxc8+
{[%clk 0:00:18.7]} 44... Kh7 {[%clk 0:00:52.7]} 45. Qc2+ {[%clk 0:00:17.5]}
45... g6 {[%clk 0:00:53]} 46. h4 {[%clk 0:00:14.9]} 46... Qd5 {[%clk 0:00:46.9]}
47. b3 {[%clk 0:00:13.5]} 47... h5 {[%clk 0:00:43.7]} 48. Qb2 {[%clk 0:00:12]}
48... Qf3 {[%clk 0:00:41.9]} 49. Qc2 {[%clk 0:00:10.2]} 49... e5 {[%clk
0:00:38.2]} 50. Qc4 {[%clk 0:00:08.5]} 50... e4 {[%clk 0:00:38.6]} 51. Qxb4
{[%clk 0:00:07.3]} 51... e3 {[%clk 0:00:39.1]} 52. Qf4 {[%clk 0:00:04.5]} 52...
Qxf4 {[%clk 0:00:35.7]} 53. gxf4 {[%clk 0:00:04.6]} 53... e2 {[%clk 0:00:35.9]}
0-1